Cogmind - Beta 14 @@@ ROGUE MODE // 2024.08.11 @ 16:27:36 Player: Hoebuh Result: Destroyed by Y-45 Defender with Beam Rifle Performance ------------- Evolutions (2) 1000 Regions Visited (4) 800 Robots Destroyed (43) 215 Value Destroyed (1118) 1118 Prototype IDs (0) 0 Alien Tech Used (0) 0 Bonus (0) 0 TOTAL SCORE: 3133 Bonus ------- None Cogmind --------- Core Integrity 0/550 Matter 177/300 Energy 100/100 System Corruption 0% Temperature Cool (9) Movement Core (1350) Ox26 Location -8/Materials Parts ------- > --- POWER (1) -------- (None) > --- PROPULSION (2) --- (None) > --- UTILITY (4) ------ Huge Storage Unit > --- WEAPON (4) ------- (None) > --- INVENTORY (25) --- Ion Engine Ion Engine Wheel Compact Wheel Flight Unit Flight Unit Improved Heat Sink Huge Storage Unit Peak State ------------ > --- POWER ------------ Improved Ion Engine > --- PROPULSION ------- Aluminum Leg Aluminum Leg > --- UTILITY ---------- Heat Sink Improved Heat Sink Huge Storage Unit Targeting Computer > --- WEAPON ----------- Light Assault Rifle Heavy Assault Rifle Grenade Launcher Mining Laser > --- INVENTORY -------- Ion Engine Ion Engine Ion Engine Light Ion Engine Aluminum Leg Aluminum Leg Aluminum Leg Aluminum Leg Wheel Compact Wheel Flight Unit Flight Unit Heat Sink Huge Storage Unit Light Assault Rifle [Rating: 16] Favorites ----------- Power Light Ion Engine Engine Light Ion Engine Power Core Light Nuclear Core Propulsion Aluminum Leg Treads Light Treads Leg Aluminum Leg Utility Huge Storage Unit Device Improved Heat Sink Storage Huge Storage Unit Processor Targeting Computer Weapon Light Assault Rifle Energy Gun Medium Laser Energy Cannon Beam Cannon Ballistic Gun Light Assault Rifle Launcher Grenade Launcher Special Weapon Mining Laser Build | -11 -10 -10 -9 -8 ------- Run | Yrd Mat Min Mat Mat Slots Evolved 4 | . . . 2 2 Power . | . . . . . Propulsion . | . . . . . Utility 2 | . . . 1 1 Weapon 2 | . . . 1 1 Parts Attached 41 | 6 3 4 13 15 Power 6 | 1 . 1 1 3 Engine 5 | 1 . 1 1 2 Core 1 | . . . . 1 Reactor . | . . . . . Propulsion 11 | 2 . . 5 4 Treads 2 | 2 . . . . Leg 9 | . . . 5 4 Wheel . | . . . . . Hover . | . . . . . Flight . | . . . . . Utility 10 | 1 3 1 2 3 Device 6 | . 1 1 1 3 Storage 3 | 1 2 . . . Processor 1 | . . . 1 . Hackware . | . . . . . Protection . | . . . . . Artifact . | . . . . . Weapon 14 | 2 . 2 5 5 Energy Gun 3 | 2 . . . 1 Energy Cannon 1 | . . 1 . . Ballistic Gun 4 | . . . 3 1 Ballistic Cannon . | . . . . . Launcher 4 | . . 1 1 2 Special Weapon 2 | . . . 1 1 Impact Weapon . | . . . . . Slashing Weapon . | . . . . . Piercing Weapon . | . . . . . Special Melee Weapon . | . . . . . Unidentified Prototypes . | . . . . . Parts Lost 27 | . . 2 4 21 Power 6 | . . 1 1 4 Propulsion 7 | . . . 1 6 Utility 5 | . . . . 5 Weapon 9 | . . 1 2 6 Highest Loss Streak 17 | . . 1 2 17 To Critical Strikes 1 | . . . 1 . Average Slot Usage (%) 94 | . 88 98 98 82 Engine 11 | . 14 13 10 7 Treads 8 | . 28 28 . . Leg 13 | . . . 21 16 Device 11 | . 5 14 10 16 Storage 11 | . 14 14 11 9 Processor 7 | . . . 11 8 Energy Gun 5 | . 25 14 . . Energy Cannon 2 | . . 2 4 . Ballistic Gun 14 | . . . 24 14 Launcher 3 | . . 11 . 6 Special Weapon 2 | . . . 2 3 Peak Build Rating 16 | 6 7 10 14 16 Average Rating 11 | 5 6 8 13 13 On Entrance 7 | . 6 7 10 13 Naked Turns . | . . . . . Heaviest Build 97 | 11 87 89 95 97 Greatest Support 40 | 40 40 40 40 20 Greatest Overweight (x) 27 | 2 2 2 4 27 Average Overweight (x) 2 | . . 2 3 4 Largest Inventory Capacity 25 | 8 25 25 25 25 Average Capacity 23 | 7 18 25 25 25 Most Carried 19 | 6 13 13 19 17 Average Carried 13 | 3 8 12 15 13 Final Capacity 25 | 8 25 25 25 25 Final Carried 18 | 6 13 12 18 8 Class Distribution -------------------- 44% | Scavenger-Gunner 37% | Mutant 13% | Gunner 4% | Scavenger-Mutant Dominant Class ---------------- Mutant | -10/Materials Mutant | -10/Mines Scavenger-Gunner | -9/Materials Scavenger-Gunner | -8/Materials Resources | -11 -10 -10 -9 -8 ----------- Run | Yrd Mat Min Mat Mat Matter Collected 766 | 214 . 107 266 179 Remotely . | . . . . . Salvage Created 1187 | 37 87 171 603 289 Parts 82 | . 6 13 46 17 Haulers Intercepted . | . . . . . Recyclers Shooed 2 | . . . . 2 Parts Field Recycled . | . . . . . Retrieved Matter . | . . . . . Parts Self-Destructed . | . . . . . Prevented . | . . . . . Kills | -11 -10 -10 -9 -8 ------- Run | Yrd Mat Min Mat Mat Combat Hostiles Destroyed 33 | . 3 8 17 5 Guns 21 | . 3 4 11 3 Cannons 7 | . . 1 6 . AOE 5 | . . 3 . 2 Classes Destroyed 8 | 1 2 . 4 1 Worker 6 | . . . 2 4 Tunneler 2 | . . . . 2 Recycler 1 | 1 . . . . Watcher 1 | . . . 1 . Swarmer 9 | . 1 5 3 . Grunt 18 | . 2 3 11 2 Duelist 1 | . . . 1 . Sentry 5 | . . . 2 3 Best Kill Streak 5 | 1 3 3 5 5 Combat Bots Only 5 | . 3 3 5 2 Max Kills in Single Turn 2 | 1 1 1 1 2 Gunslinging . | . . . . . Exploded 1 | . . 1 . 1 Melee . | . . . . . Uniques/NPCs Destroyed . | . . . . . Combat | -11 -10 -10 -9 -8 -------- Run | Yrd Mat Min Mat Mat Hostile Shots Fired 309 | . 18 32 96 163 Missed 87 | . 5 10 28 44 Damage Taken 3182 | . 131 311 824 1916 Core 800 | . 11 58 177 554 Absorbed by Shields . | . . . . . Regen/Repaired (Parts) 39 | . . . 39 . Core Remaining (%) 75 | 100 . 72 55 . Volleys Fired 118 | . 13 14 57 34 Largest 4 | . 2 2 3 4 Hottest 180 | . 90 110 180 173 Shots Fired 280 | . 20 25 156 79 Gun 215 | . 20 14 113 68 Cannon 40 | . . 7 33 . Launcher 18 | . . 4 3 11 Special 7 | . . . 7 . Kinetic 173 | . . . 108 65 Thermal 86 | . 20 21 45 . Explosive 18 | . . 4 3 11 Electromagnetic 3 | . . . . 3 Robot Hit Streak 14 | . 4 14 12 10 Robot Miss Streak 7 | . 4 2 7 3 Penetration Max . | . . . . . Secondary Targets 2 | . . . 1 1 Max Gunslinging Chain 1 | . . . 1 1 Shots Hit Robots 128 | . 11 17 53 47 Core Hits 83 | 2 7 12 34 28 Critical Kills 1 | . . . 1 . Critical Parts Destroyed . | . . . . . Critical Strikes 2 | . 1 . 1 . Burn 1 | . 1 . . . Destroy 1 | . . . 1 . Melee Attacks . | . . . . . Impact . | . . . . . Slashing . | . . . . . Piercing . | . . . . . Sneak Attacks . | . . . . . Combat Hostiles . | . . . . . Follow-up Attacks . | . . . . . Damage Inflicted 2507 | 22 137 402 952 994 Guns 1164 | . 132 136 426 470 Cannons 403 | . . 52 351 . Explosions 818 | . . 214 97 507 Melee . | . . . . . Ramming 50 | 22 5 . 6 17 Kinetic 810 | . . . 389 421 Thermal 854 | . 132 188 534 . Explosive 744 | . . 214 23 507 Electromagnetic 49 | . . . . 49 Impact . | . . . . . Slashing . | . . . . . Piercing . | . . . . . Highest Corruption . | . . . . . Average Corruption . | . . . . . Corruption Purged . | . . . . . Corruption Blocked . | . . . . . Overload Shots . | . . . . . Overflow Damage 110 | . . 31 44 35 Projectiles . | . . . . . Explosions 110 | . . 31 44 35 Melee . | . . . . . Knockbacks 1 | . 1 . . . Impact 1 | . 1 . . . Kinetic . | . . . . . Secondary . | . . . . . Self-Inflicted Damage 209 | . . 68 24 117 Shots 8 | . . 4 1 3 Rammed 9 | 8 1 . . . Targets Rammed 15 | 9 1 . 2 3 Kicked 5 | . . . 2 3 Crushed 1 | 1 . . . . Highest Temperature 220 | . 220 153 27 48 Average Temperature 51 | . 99 60 9 14 Received Heat Transfer 1269 | . 60 102 261 846 Siege Activations . | . . . . . Robots Corrupted . | . . . . . Combat Hostiles . | . . . . . Parts Fried . | . . . . . Impact Corruptions . | . . . . . Robots Melted . | . . . . . Combat Hostiles . | . . . . . Parts Melted . | . . . . . Heat Transferred 2014 | . 445 518 1051 . Parts Sabotaged . | . . . . . Parts Stolen . | . . . . . Parts Stripped . | . . . . . Power Chain Reactions . | . . . . . Alert | -11 -10 -10 -9 -8 ------- Run | Yrd Mat Min Mat Mat Peak Influence 290 | 5 104 142 290 134 Initial 48 | . 3 40 48 1 Average 95 | 1 23 67 144 50 Maximum Alert Level 1 | . . . 1 . Low Security (%) 88 | 100 100 100 77 100 Level 1 11 | . . . 22 . Level 2 . | . . . . . Level 3 . | . . . . . Level 4 . | . . . . . Level 5 . | . . . . . High Security . | . . . . . Max Security . | . . . . . Squads Dispatched 6 | . 1 . 3 2 Investigation . | . . . . . Extermination . | . . . . . Reinforcement 6 | . 1 . 3 2 Assault . | . . . . . Garrison . | . . . . . Intercept . | . . . . . Searches Triggered . | . . . . . Construction Impeded 2 | . . . 1 1 Haulers Reinforced . | . . . . . Active Scanning Responses . | . . . . . Cargo Convoy Interrupts . | . . . . . Stealth | -11 -10 -10 -9 -8 --------- Run | Yrd Mat Min Mat Mat Distress Signals 8 | . 1 . 5 2 Communications Jammed . | . . . . . Distress Signals . | . . . . . Times Spotted 71 | . 9 9 34 19 Peak Tracking Total 7 | . 3 4 5 7 Tactical Retreats 2 | . . 1 . 1 Traps | -11 -10 -10 -9 -8 ------- Run | Yrd Mat Min Mat Mat Traps Triggered . | . . . . . Indirectly . | . . . . . Trap Hack Attempts . | . . . . . Triggered . | . . . . . Disarmed . | . . . . . Reprogrammed . | . . . . . Reused . | . . . . . Traps Extracted . | . . . . . Installed . | . . . . . Triggered . | . . . . . Machines | -11 -10 -10 -9 -8 ---------- Run | Yrd Mat Min Mat Mat Machines Disabled 5 | . . 1 3 1 Max in Single Turn 2 | . . 1 2 1 Machines Repaired . | . . . . . Machines Dismantled . | . . . . . Machines Sabotaged . | . . . . . Overloaded Fab Kills . | . . . . . Hacking | -11 -10 -10 -9 -8 --------- Run | Yrd Mat Min Mat Mat Machines Accessed 5 | . 1 1 3 . Terminals 3 | . . 1 2 . Fabricators . | . . . . . Repair Stations 1 | . . . 1 . Recycling Units 1 | . 1 . . . Scanalyzers . | . . . . . Garrison Access . | . . . . . Total Hacks 10 | . 3 1 6 . Successful 7 | . 3 1 3 . Failed 3 | . . . 3 . Catastrophic . | . . . . . Database Lockouts . | . . . . . Manual . | . . . . . Terminals 5 | . . 1 4 . Fabricators . | . . . . . Repair Stations 2 | . . . 2 . Recycling Units 3 | . 3 . . . Scanalyzers . | . . . . . Garrison Access . | . . . . . Terminal Hacks 2 | . . 1 1 . Record 1 | . . 1 . . Alert Level 1 | . . . 1 . Fabricator Hacks . | . . . . . Repair Station Hacks 2 | . . . 2 . Scan Component 1 | . . . 1 . Repair 1 | . . . 1 . Recycling Unit Hacks 3 | . 3 . . . Process 1 | . 1 . . . Report Inventory 2 | . 2 . . . Scanalyzer . | . . . . . Garrison Access Hacks . | . . . . . Unauthorized Hacks . | . . . . . Terminals . | . . . . . Fabricators . | . . . . . Repair Stations . | . . . . . Recycling Units . | . . . . . Scanalyzers . | . . . . . Garrison Access . | . . . . . Data Cores Recovered . | . . . . . Used . | . . . . . Hacking Detections 3 | . 1 . 2 . Full Trace Events 1 | . . . 1 . Feedback Events . | . . . . . Feedback Blocked . | . . . . . Robot Schematics Acquired . | . . . . . Robots Built . | . . . . . Authchips . | . . . . . Time . | . . . . . Total Robot Build Rating . | . . . . . Part Schematics Acquired . | . . . . . Parts Built . | . . . . . Authchips . | . . . . . Time . | . . . . . Total Part Build Rating . | . . . . . Parts Repaired 1 | . . . 1 . Time 38 | . . . 38 . Parts Recycled . | . . . . . Recycled Matter . | . . . . . Retrieved Matter . | . . . . . Retrieved Components . | . . . . . Parts Scanalyzed . | . . . . . Part Schematics Acquired . | . . . . . Parts Damaged . | . . . . . Bothacking | -11 -10 -10 -9 -8 ------------ Run | Yrd Mat Min Mat Mat Used RIF Installer . | . . . . . Robots Hacked . | . . . . . Non-combat . | . . . . . Combat . | . . . . . Robot Hacks Applied . | . . . . . Relay Couplers Released . | . . . . . Fabnet Peak Effective % . | . . . . . Robots Rewired . | . . . . . Allies Hacked . | . . . . . Hacks Repelled . | . . . . . Allies | -11 -10 -10 -9 -8 -------- Run | Yrd Mat Min Mat Mat Total Allies . | . . . . . Largest Group . | . . . . . Highest-Rated Group . | . . . . . Highest-Rated Ally . | . . . . . Total Orders . | . . . . . Ally Attacks . | . . . . . Total Damage . | . . . . . Kills . | . . . . . Allies Corrupted . | . . . . . Allies Melted . | . . . . . Intel | -11 -10 -10 -9 -8 ------- Run | Yrd Mat Min Mat Mat Robot Analysis Total . | . . . . . Derelict Logs Recovered 1 | . . 1 . . Drone Launches . | . . . . . Drone Recoveries . | . . . . . Exploration | -11 -10 -10 -9 -8 ------------- Run | Yrd Mat Min Mat Mat Turns Passed 3371 | 112 315 674 1641 629 Spaces Moved 830 | 55 117 193 347 118 Core 15 | 11 . . . 4 Treads 367 | 44 117 193 13 . Legs 448 | . . . 334 114 Wheels . | . . . . . Hover . | . . . . . Flight . | . . . . . Fastest Speed 50 | 50 160 320 320 400 Average Speed 343 | 147 227 320 397 432 Slowest Speed 1400 | 160 320 320 400 1400 Overloaded Moves . | . . . . . Propulsion Burnouts . | . . . . . Robots Hopped . | . . . . . Cave-ins Triggered . | . . . . . Exploration Rate (%) 24 | 4 28 50 24 18 Regions Visited 4 Branch Regions 1 Pre-discovered Areas 1 | . . 1 . . Known Exits Taken . | . . . . . Unknown Exits Taken 4 | 1 1 1 1 . Scrap Searched . | . . . . . Spaces Dug . | . . . . . Terrain Destroyed 118 | . . 24 27 67 Melee . | . . . . . Projectile 1 | . . . 1 . AOE 117 | . . 24 26 67 Terrain Rammed . | . . . . . Walls Destroyed . | . . . . . Machines Disabled . | . . . . . Actions | -11 -10 -10 -9 -8 --------- Run | Yrd Mat Min Mat Mat Total 1125 | 81 148 227 489 180 Wait 57 | . . 14 38 5 Move 826 | 54 116 192 346 118 Hop . | . . . . . Pick Up 47 | 12 9 2 20 4 Fast Attach 1 | . 1 . . . Attach 40 | 6 2 4 13 15 Detach 11 | . 3 1 6 1 Swap . | . . . . . Drop 10 | . 3 . 7 . Fire 118 | . 13 14 57 34 Melee . | . . . . . Ram . | . . . . . Kick 5 | . . . 2 3 Crush 10 | 9 1 . . . Escape Stasis . | . . . . . Rewire . | . . . . . Trap . | . . . . . Miscellaneous . | . . . . . Route ------- -11/Scrapyard -10/Materials -10/Mines -9/Materials -8/Materials History --------- Turn | Location | Event 2 | -11/Scrapyard | Discovered new exit (range 16) 113 | -11/Scrapyard | Entered Materials 326 | -10/Materials | Build established: Mutant 344 | -10/Materials | Discovered new exit (range 7) 428 | -10/Materials | Entered Mines 466 | -10/Mines | Met a Derelict bent on vengeance 840 | -10/Mines | Learned location of Mines (-9) 1060 | -10/Mines | Discovered new exit (range 9) 1102 | -10/Mines | Entered Materials 1102 | -9/Materials | Evolved 2 slots: Utility x1, Weapon x1 1453 | -9/Materials | Build established: Gunner 1909 | -9/Materials | Build established: Scavenger-Gunner 2458 | -9/Materials | Repaired Imp. Heat Sink 2719 | -9/Materials | Discovered new exit (range 8) 2743 | -9/Materials | Entered another Materials area 2743 | -8/Materials | Evolved 2 slots: Utility x1, Weapon x1 3024 | -8/Materials | Lost 4 parts (1p1n2w) 3312 | -8/Materials | Core integrity fell below 50% 3356 | -8/Materials | Core integrity fell below 20% 3372 | -8/Materials | Destroyed by Y-45 Defender with Beam Rifle Last Messages --------------- K-01 Serf collects debris. R-06 Scavenger collects Wheel. Acquired 4 matter. K-01 Serf collects debris. Acquired 19 matter. Aluminum Leg destroyed. The unstable cave ceiling collapses. K-01 Serf collects debris. Aluminum Leg destroyed. K-01 Serf collects debris. Heat Sink destroyed. Critical hit (Burn: +37). Targeting Computer destroyed. Imp. Sensor Array destroyed. U-05 Engineer lays Concrete. U-05 Engineer builds a Wall. U-05 Engineer lays Concrete. U-05 Engineer builds a Wall. Critical hit (Burn: +37). U-05 Engineer builds a Wall. Map ----- +----------------------------------------------------+ | ????????????????????????? ???????????????????????? | | ?????????????????????????!#??????????????????????? | | ????????????????????????? #??????????????????????? | | ?????????????????????????!#####??#???????????????? | | ????????????????????????? # """ #???????????????? | | ????????""??????##??????? # "Y" #???????????????? | | ????????"""???### ####### # #???????????????? | | ????????? ??# #???????????????? | | ????????### ## # # ????????????????? | | ??????### # ??????????????????? | | ?????"% % #????????????????????? | | ????? " ! !! # #????????????????????? | | ????? % %*#%= !! ##????????????????????? | | ????????# = #! # u #????????????????????? | | ??????????## ## #????????????????????? | | ???????????## # # ###????????????????????? | | ??????????????######### #w# #????????????????????? | | ??????????????????????# # # #????????????????????? | | ??????????????????????# # # #????????????????????? | | ??????????????????????# #m# #????????????????????? | | ??????????????????????###Y#=#????????????????????? | | ???????????????????????##g###????????????????????? | | ???????????????????????##Y##?????????????????????? | | ????????????????????????# #??????????????????????? | | ????????????????????????# #??????????????????????? | | ????????????????????????#@#??????????????????????? | | ????????????????????????#k#??????????????????????? | | ????????????????????????# #???????##?????????????? | | ????????????????????????# #?###### ##???????????? | | ????????????????????????# ### ????????????? | | ????????????????????????# ## ?????????????? | | ????????????????????????# ## ??????????????? | | ????????????????????????# ## #???????????????? | | ????????????????????????# ## ##??????????????? | | ???????????????????###??# ## #??????????????? | | ???????????????????# ### ##T" #??????????????? | | ???????????????????# # ## "## ###########?????? | | ???????????????????# # ^ ^ #?????? | | ????????????????????# ^ ^ #?????? | | ????????????????????## # " #?????? | | ?????????????????????############ #?????? | | ???????????????????????????# #?????? | | ???????????????????????????# #?????? | | ???????????????????????????# / #?????? | | ???????????????????????????# #?????? | | ???????????????????????????# # #####???? | | ???????????????????????????## #### = #???? | | ????????????????????????????# #??# ! #???? | | ????????????????????????????# #??# ! #???? | | ????????????????????????????# #??# #???? | +----------------------------------------------------+ Best States ------------- Heat Dissipation 55 Energy Generation 14 Energy Capacity 265 Matter Stores 300 Matter Capacity 300 Sight Range 16 Robot Scan Range 15 Terrain Scan Density 10 Evasion (%) 40 Targeting Accuracy 5 Recoil Reduction 2 Item Schematics ----------------- None Robot Schematics ------------------ None Fabricated ------------ Nothing Alien Tech Used ----------------- None Achievements -------------- None Challenges ------------ None Game ------ Seed ConstructChromaticActivator Manual? 0 Play Time 00:29:12 Cumulative 5.0 hours Start 2024.08.11 @ 16:00:48 End 2024.08.11 @ 16:27:36 Sessions 1 Manual Loads 0 Difficulty Rogue Special Mode None Game No. 12 Rogue 12 Adventurer 0 Explorer 0 Win Type - Total 0 Types 0/0/0/0/0/0/0/0/0 Lore% 1 Gallery% 8 Achievement% 9 Wizard Run 0 Options --------- Layout 1 ASCII 0 Keyboard 0 Movement Mouse Keybinds 0 Fullscreen 1 Font 32/SmallcapsGlow Map View 50x35 Zoom Use 0% Tactical HUD 0 Map Filters NONE Filters NONE Steam 1 RUN: 4f092e41-a573-4ba8-9f6b-14e05ffaf248